[Event "Rohde op 12th"]
[Site "Sautron"]
[Date "2012.10.29"]
[Round "3"]
[White "Arnaudov, Petar G"]
[Black "Oleksienko, Mikhailo"]
[Result "0-1"]
[ECO "A67"]
[WhiteElo "2471"]
[BlackElo "2539"]
[Annotator "Bedouin,X/Primel,D"]
[PlyCount "64"]
[EventDate "2012.10.27"]
[EventType "swiss"]
[EventRounds "9"]
[EventCountry "FRA"]
[SourceTitle "EXT 2014"]
[Source "ChessBase"]
[SourceDate "2013.11.20"]
[SourceVersion "1"]
[SourceVersionDate "2013.11.20"]
[SourceQuality "1"]
[TimeControl "40/5400+30:1800+30"]
[WhiteClock "1:30:00"]
[BlackClock "1:30:00"]

1. d4 {[%emt 0:02:21]} Nf6 {[%emt 0:00:00]} 2. c4 {[%emt 0:00:04]} c5 {[%emt 0:
00:00]} 3. d5 {[%emt 0:00:09]} e6 {[%emt 0:00:07]} 4. Nc3 {[%emt 0:00:06]} exd5
{[%emt 0:00:04]} 5. cxd5 {[%emt 0:00:07]} d6 {[%emt 0:00:07]} 6. e4 {[%emt 0:
00:04]} g6 {[%emt 0:00:15]} 7. f4 {[%emt 0:01:32]} Bg7 {[%emt 0:00:07]} 8. Bb5+
{[%emt 0:00:04]} Nfd7 {[%emt 0:00:27]} (8... Nbd7 {Peut-être sous estimé même
si la théorie a longtemps considéré que Nfd7 était indispensable} 9. e5 dxe5
10. fxe5 Nh5 11. e6 Qh4+ 12. g3 Nxg3 13. hxg3 Qxh1 14. Be3 Bxc3+ 15. bxc3 a6
16. exd7+ Bxd7 17. Bxd7+ Kxd7 18. Qb3 b5 {Sokolov,I (2665)-Topalov,V (2700)
Hoogovens Wijk aan Zee 1996 (4) 1-0}) 9. a4 {[%emt 0:00:33]} Qh4+ {[%emt 0:00:
05]} (9... O-O {La grande ligne}) 10. g3 {[%emt 0:00:10]} Qd8 {[%emt 0:00:03]}
(10... Qe7 {[%csl Re4,Re5] L'alternative}) 11. Nf3 {[%emt 0:00:27][%cal Ge4e5]}
O-O {[%emt 0:00:05]} 12. O-O {[%emt 0:00:17]} (12. Kf2 $13 Na6 {Mecking,H 
(2589)-Hungaski,R (2507) Caxias do Sul op 12th rapid 2012 (5) 1/2}) 12... Na6 {
[%emt 0:00:03]} (12... a6 13. Bd3 (13. Be2)) 13. Kg2 {[%emt 0:03:04]} (13. f5
$5 {[%csl Rc8]} Nf6 {Steingrimsson,H (2554)-Kristjansson,S (2483) ISL-ch
Egilsstadir 2011 (7) 1/2} (13... Ne5)) 13... Nc7 {[%emt 0:01:43]} 14. Bxd7 $1 {
[%emt 0:00:10] L'idée thématique est la poussée thématique f4f5 qui va gêner
le Bd7 sans craindre la réponse Ne5} (14. f5 Ne5 $11) 14... Bxd7 {[%emt 0:06:
25]} 15. f5 {[%emt 0:00:45]} gxf5 {[%emt 0:05:04]} (15... h6 $5 {Moins risqué})
16. Bg5 {[%emt 0:01:53]} (16. exf5 Bxf5 17. Nh4 Bg6 18. Nf5 $44) 16... Qc8 {
[%emt 0:07:34]} (16... Qe8 17. exf5 Bxf5 18. Qd2 $44 {[%cal Ga1e1]}) 17. Be7 {
[%emt 0:13:38]} Re8 {[%emt 0:11:31]} 18. Bxd6 {[%emt 0:00:29]} fxe4 {[%emt 0:
00:16]} 19. Ng5 $32 {[%emt 0:00:49][%csl Ra8,Rc8][%cal Gc3e4,Gg5f7]} f6 {
[%emt 0:06:40]} 20. Rxf6 $5 {[%emt 0:24:28]} (20. Ngxe4 Bh3+ 21. Kh1 Bxf1 22.
Qxf1 f5 $1 {et les Blancs n'ont pas assez de compensations (XB)} 23. Nxc5 Bxc3
$1 24. bxc3 Nxd5 25. Qc4 Qc6 26. Rd1 b6 {X BEDOUIN}) 20... Bg4 {[%emt 0:25:42]}
(20... Bxf6 21. Qh5 {[%csl Rg8]} Bh3+ $1 22. Nxh3 Qd7 {[%cal Gd7d6,Gd7h7]}) 21.
Qf1 {[%emt 0:00:56]} h6 $1 {[%emt 0:00:18] Le coup intermédiaire décisif} 22.
h3 {[%emt 0:22:22]} (22. Rg6 hxg5 23. Qf6 Bf3+ 24. Kg1 Qd7 $19) 22... Bf3+ {
[%emt 0:01:29]} 23. Nxf3 {[%emt 0:00:53]} Bxf6 {[%emt 0:00:09]} 24. Nd2 {
[%emt 0:00:45]} Bxc3 $19 {[%emt 0:03:25]} 25. bxc3 {[%emt 0:00:03]} Nxd5 {
[%emt 0:00:15]} 26. Re1 {[%emt 0:02:38]} e3 {[%emt 0:03:48]} 27. Qf3 {[%emt 0:
02:43]} Qe6 {[%emt 0:02:34]} 28. Bxc5 {[%emt 0:00:06]} Rad8 {[%emt 0:03:11]}
29. c4 {[%emt 0:02:27]} Nf4+ {[%emt 0:03:58]} 30. gxf4 {[%emt 0:02:13]} Qg6+ {
[%emt 0:01:46]} 31. Kh1 {[%emt 0:00:34]} exd2 {[%emt 0:00:19]} 32. Rxe8+ {
[%emt 0:00:16]} Qxe8 {[%emt 0:00:30]} 0-1